Cogmind - Beta 9.3 @@@ ROGUE MODE // 2019.12.15 @ 16:51:03 // Winter2019/RPGLIKE Player: Nikolayag Result: Core destroyed Performance ------------- Evolutions (2) 1000 Regions Visited (7) 1400 Robots Destroyed (100) 500 Value Destroyed (1966) 1966 Prototype IDs (22) 440 Alien Tech Used (0) 0 Bonus (453) 453 TOTAL SCORE: 5759 Bonus ------- High Alert Combat Kills 153 Aligned with FarCom 300 Cogmind --------- Core Integrity 0/700 Matter 173/300 Energy 73/125 System Corruption 0% Temperature Cool (593) Movement Flying (40) Location -8/Materials Parts ------- > --- POWER (1) -------- Light Ion Engine > --- PROPULSION (2) --- VTOL Module > --- UTILITY (4) ------ Weapon Cycler Hacking Suite Hacking Suite Hacking Suite > --- WEAPON (2) ------- Gauss Cannon Gauss Cannon > --- INVENTORY (2) ---- Improved Terrain Scanner Mini Grenade Launcher Peak State ------------ > --- POWER ------------ Light Ion Engine > --- PROPULSION ------- Flight Unit VTOL Module > --- UTILITY ---------- Weapon Cycler Hacking Suite Hacking Suite Hacking Suite > --- WEAPON ----------- Gauss Cannon Gauss Cannon > --- INVENTORY -------- Mini Grenade Launcher [Rating: 25] Favorites ----------- Power Light Ion Engine Engine Light Ion Engine Propulsion Flight Unit Leg Aluminum Leg Wheel Wheel Hover Unit Improved Hover Unit Flight Unit Flight Unit Utility Hacking Suite Device Improved Terrain Scanner Storage Small Matter Pod Processor Targeting Computer Hackware Hacking Suite Weapon Assault Rifle Energy Gun Small Laser Ballistic Gun Assault Rifle Ballistic Cannon Battle Cannon Launcher Mini Grenade Launcher Build | -11 -10 -10 -9 -9 -9 -8 -8 ------- Run | Scr Mat Min Mat Min Exi Min Mat Slots Evolved 5 | . 4 . 1 . . . . Power . | . . . . . . . . Propulsion 1 | . . . 1 . . . . Utility 3 | . 3 . . . . . . Weapon 1 | . 1 . . . . . . Parts Attached 43 | 4 15 6 7 3 . 4 4 Power 6 | 1 3 1 . . . . 1 Engine 6 | 1 3 1 . . . . 1 Core . | . . . . . . . . Reactor . | . . . . . . . . Propulsion 7 | 1 . 2 3 1 . . . Treads . | . . . . . . . . Leg 1 | . . 1 . . . . . Wheel 2 | 1 . 1 . . . . . Hover 1 | . . . 1 . . . . Flight 3 | . . . 2 1 . . . Utility 8 | 1 5 . 1 . . . 1 Device 3 | 1 1 . . . . . 1 Storage 1 | . 1 . . . . . . Processor 1 | . 1 . . . . . . Hackware 3 | . 2 . 1 . . . . Protection . | . . . . . . . . Artifact . | . . . . . . . . Weapon 22 | 1 7 3 3 2 . 4 2 Energy Gun 1 | . 1 . . . . . . Energy Cannon . | . . . . . . . . Ballistic Gun 6 | 1 5 . . . . . . Ballistic Cannon 9 | . . 2 2 1 . 2 2 Launcher 6 | . 1 1 1 1 . 2 . Special Weapon . | . . . . . . . . Impact Weapon . | . . . . . . . . Slashing Weapon . | . . . . . . . . Piercing Weapon . | . . . . . . . . Special Melee Weapon . | . . . . . . . . Unidentified Prototypes . | . . . . . . . . Parts Lost 3 | . . 1 . . . . 2 Power 2 | . . 1 . . . . 1 Propulsion 1 | . . . . . . . 1 Utility . | . . . . . . . . Weapon . | . . . . . . . . Highest Loss Streak 1 | . . 1 . . . . 1 Average Slot Usage (%) 90 | . 80 96 100 100 100 100 99 Engine 13 | . 17 11 11 11 11 11 10 Wheel 1 | . 1 7 1 . . . . Flight 7 | . . . 7 22 22 22 21 Device 13 | . 17 12 11 11 11 11 11 Storage 3 | . 7 . . . . . . Processor 3 | . 2 12 3 . . . . Hackware 19 | . 5 25 32 33 33 33 33 Ballistic Gun 14 | . 27 14 2 . . . . Ballistic Cannon 9 | . . 9 20 21 22 14 22 Naked Turns 1 | . 1 . . . . . . Heaviest Build 18 | 6 9 9 10 10 10 10 18 Greatest Support 24 | 10 10 15 23 24 24 24 24 Greatest Overweight (x) 1 | . 1 1 . . . . . Average Overweight (x) . | . . . . . . . . Largest Inventory Capacity 2 | . 1 1 1 1 1 1 2 Average Capacity . | . . 1 1 1 1 1 1 Most Carried 2 | . 1 1 1 1 1 1 2 Average Carried . | . . 1 1 1 1 . 1 Final Capacity 2 | . 1 1 1 1 1 1 2 Final Carried 2 | . 1 1 1 1 1 1 2 Class Distribution -------------------- 43% | Hacker-Mutant 36% | Mutant 19% | Scavenger-Mutant Dominant Class ---------------- Mutant | -10/Materials Scavenger-Mutant | -10/Mines Scavenger-Mutant | -9/Materials Hacker-Mutant | -9/Mines Hacker-Mutant | -9/Exiles Hacker-Mutant | -8/Mines Hacker-Mutant | -8/Materials Resources | -11 -10 -10 -9 -9 -9 -8 -8 ----------- Run | Scr Mat Min Mat Min Exi Min Mat Matter Collected 2254 | 75 853 215 281 174 . 206 450 Remotely . | . . . . . . . . Salvage Created 1794 | 11 691 283 304 84 . 168 253 Parts 178 | 2 70 13 30 18 . 30 15 Haulers Intercepted 2 | . 2 . . . . . . Recyclers Shooed 4 | . 4 . . . . . . Parts Field Recycled . | . . . . . . . . Retrieved Matter . | . . . . . . . . Parts Self-Destructed . | . . . . . . . . Prevented . | . . . . . . . . Kills | -11 -10 -10 -9 -9 -9 -8 -8 ------- Run | Scr Mat Min Mat Min Exi Min Mat Combat Hostiles Destroyed 70 | . 14 7 6 9 . 22 12 Guns 14 | . 12 2 . . . . . Cannons 28 | . . 2 3 6 . 5 12 AOE 28 | . 2 3 3 3 . 17 . Classes Destroyed 11 | 1 8 . 1 1 . . . Worker 10 | . 4 1 3 1 . . 1 Builder 5 | . 2 1 1 1 . . . Tunneler 2 | 1 . . . 1 . . . Hauler 2 | . 2 . . . . . . Recycler 2 | . 1 1 . . . . . Operator 6 | . 3 . 2 . . . 1 Watcher 3 | . 2 . 1 . . . . Swarmer 38 | . 6 3 3 6 . 17 3 Grunt 24 | . 8 4 1 2 . 4 5 Brawler 2 | . . . . 1 . 1 . Sentry 6 | . . . 2 . . . 4 Best Kill Streak 10 | 1 6 3 10 5 . 6 6 Combat Bots Only 6 | . 6 3 3 3 . 6 5 Max Kills in Single Turn 3 | 1 2 2 2 2 . 3 2 Gunslinging . | . . . . . . . . Exploded 3 | . 2 2 2 2 . 3 . Melee . | . . . . . . . . Uniques/NPCs Destroyed . | . . . . . . . . Combat | -11 -10 -10 -9 -9 -9 -8 -8 -------- Run | Scr Mat Min Mat Min Exi Min Mat Damage Taken 2402 | . 636 347 154 124 . 419 722 Core 2020 | . 539 289 134 96 . 348 614 Absorbed by Shields . | . . . . . . . . Redirected to Core 1255 | . 312 192 63 80 . 232 376 Core Remaining (%) 66 | 100 . 55 . . . 44 . Volleys Fired 262 | 4 116 24 23 15 2 36 42 Largest 2 | 1 2 2 2 2 2 2 2 Hottest 96 | 20 40 59 74 74 74 74 96 Shots Fired 421 | 4 167 46 43 28 4 45 84 Gun 205 | 4 166 35 . . . . . Cannon 193 | . . 9 40 26 4 30 84 Launcher 23 | . 1 2 3 2 . 15 . Special . | . . . . . . . . Kinetic 398 | 4 166 44 40 26 4 30 84 Thermal . | . . . . . . . . Explosive 23 | . 1 2 3 2 . 15 . Electromagnetic . | . . . . . . . . Robot Hit Streak 19 | 2 9 16 19 7 . 11 17 Robot Miss Streak 8 | 1 6 1 5 7 . 8 4 Penetration Max 1 | . . . . . . . 1 Secondary Targets 1 | . 1 . . . . . . Max Gunslinging Chain 1 | . 1 . . . . . . Shots Hit Robots 253 | 3 98 37 21 13 . 28 53 Core Hits 140 | 1 42 16 16 12 . 31 22 Critical Hits 5 | . . 1 . . . . 4 Critical Kills 2 | . . . . . . . 2 Critical Parts Destroyed 3 | . . 1 . . . . 2 Melee Attacks . | . . . . . . . . Impact . | . . . . . . . . Slashing . | . . . . . . . . Piercing . | . . . . . . . . Sneak Attacks . | . . . . . . . . Combat Hostiles . | . . . . . . . . Follow-up Attacks . | . . . . . . . . Damage Inflicted 6313 | 41 1449 614 644 435 . 1929 1201 Guns 1728 | 41 1345 342 . . . . . Cannons 2446 | . . 163 449 289 . 436 1109 Explosions 2137 | . 104 107 195 146 . 1493 92 Melee . | . . . . . . . . Ramming 2 | . . 2 . . . . . Kinetic 4174 | 41 1345 505 449 289 . 436 1109 Thermal 92 | . . . . . . . 92 Explosive 2045 | . 104 107 195 146 . 1493 . Electromagnetic . | . . . . . . . . Impact . | . . . . . . . . Slashing . | . . . . . . . . Piercing . | . . . . . . . . Highest Corruption 1 | . 1 1 . . . . . Average Corruption 1 | . 1 1 . . . . . Corruption Purged . | . . . . . . . . Effects 9 | . 4 5 . . . . . Message Errors 5 | . 2 3 . . . . . Energy Discharges 1 | . . 1 . . . . . Data Loss (minor) 2 | . 1 1 . . . . . Targeting Errors 1 | . 1 . . . . . . Overload Shots . | . . . . . . . . Overflow Damage 285 | . . . 9 . . 162 114 Projectiles 50 | . . . 9 . . 21 20 Explosions 235 | . . . . . . 141 94 Melee . | . . . . . . . . Knockbacks 17 | . . 2 . 2 . 3 10 Impact . | . . . . . . . . Kinetic 15 | . . 2 . 2 . 3 8 Secondary 2 | . . . . . . . 2 Self-Inflicted Damage 161 | . . 1 9 . . 74 77 Shots 5 | . . . 1 . . 3 1 Rammed 1 | . . 1 . . . . . Targets Rammed 1 | . . 1 . . . . . Kicked . | . . . . . . . . Crushed . | . . . . . . . . Highest Temperature 593 | . 5 29 63 96 22 126 593 Average Temperature 61 | . 5 12 22 31 12 38 109 Received Heat Transfer 834 | . 234 192 27 30 . 90 261 Effects 4 | . . . . . . . 4 Shutdowns 1 | . . . . . . . 1 Matter Decay 1 | . . . . . . . 1 Damage (minor) 1 | . . . . . . . 1 Damage (core) 1 | . . . . . . . 1 Siege Activations . | . . . . . . . . Robots Corrupted . | . . . . . . . . Combat Hostiles . | . . . . . . . . Parts Fried . | . . . . . . . . Impact Corruptions . | . . . . . . . . Robots Melted . | . . . . . . . . Combat Hostiles . | . . . . . . . . Parts Melted . | . . . . . . . . Heat Transferred 50 | . . . . . . . 50 Parts Sabotaged . | . . . . . . . . Parts Stolen . | . . . . . . . . Parts Stripped . | . . . . . . . . Power Chain Reactions . | . . . . . . . . Missiles Intercepted . | . . . . . . . . Alert | -11 -10 -10 -9 -9 -9 -8 -8 ------- Run | Scr Mat Min Mat Min Exi Min Mat Peak Influence 733 | 5 255 120 321 354 . 652 733 Average Influence 170 | 1 99 47 175 258 . 411 499 Maximum Alert Level 3 | . 1 . 1 1 . 2 3 Low Security (%) 71 | 100 94 100 60 32 . 13 . Level 1 17 | . 5 . 39 67 . 38 17 Level 2 10 | . . . . . . 47 79 Level 3 . | . . . . . . . 3 Level 4 . | . . . . . . . . Level 5 . | . . . . . . . . High Security . | . . . . . . . . Max Security . | . . . . . . . . Squads Dispatched 9 | . 3 . 3 . . . 3 Investigation 2 | . . . 1 . . . 1 Extermination . | . . . . . . . . Reinforcement 7 | . 3 . 2 . . . 2 Assault . | . . . . . . . . Garrison . | . . . . . . . . Intercept . | . . . . . . . . Construction Impeded . | . . . . . . . . Haulers Reinforced . | . . . . . . . . Stealth | -11 -10 -10 -9 -9 -9 -8 -8 --------- Run | Scr Mat Min Mat Min Exi Min Mat Distress Signals 4 | . 1 . 3 . . . . Communications Jammed . | . . . . . . . . Distress Signals . | . . . . . . . . Times Spotted 114 | . 34 7 17 12 . 23 21 Peak Tracking Total 9 | . 4 3 7 3 9 4 8 Tactical Retreats 2 | . 1 . . . . . 1 Traps | -11 -10 -10 -9 -9 -9 -8 -8 ------- Run | Scr Mat Min Mat Min Exi Min Mat Traps Triggered 6 | . 5 . . . . . 1 Indirectly . | . . . . . . . . Trap Hack Attempts . | . . . . . . . . Triggered . | . . . . . . . . Disarmed . | . . . . . . . . Reprogrammed . | . . . . . . . . Reused . | . . . . . . . . Traps Extracted . | . . . . . . . . Installed 1 | . . 1 . . . . . Triggered . | . . . . . . . . Machines | -11 -10 -10 -9 -9 -9 -8 -8 ---------- Run | Scr Mat Min Mat Min Exi Min Mat Machines Disabled 8 | . . . 1 1 2 1 3 Max in Single Turn 2 | . . . 1 1 1 1 2 Machines Sabotaged . | . . . . . . . . Garrisons Compromised . | . . . . . . . . Overloaded Fab Kills . | . . . . . . . . Fab Network Shutdowns . | . . . . . . . . Hacking | -11 -10 -10 -9 -9 -9 -8 -8 --------- Run | Scr Mat Min Mat Min Exi Min Mat Machines Accessed 7 | . 2 . 1 . 2 . 2 Terminals 5 | . 2 . 1 . . . 2 Fabricators . | . . . . . . . . Repair Stations . | . . . . . . . . Recycling Units . | . . . . . . . . Scanalyzers . | . . . . . . . . Garrison Access . | . . . . . . . . Total Hacks 18 | . 7 . 2 . 5 . 4 Successful 15 | . 6 . 1 . 5 . 3 Failed 3 | . 1 . 1 . . . 1 Catastrophic . | . . . . . . . . Database Lockouts . | . . . . . . . . Manual 9 | . 4 . 2 . 1 . 2 Terminals 13 | . 7 . 2 . . . 4 Fabricators . | . . . . . . . . Repair Stations . | . . . . . . . . Recycling Units . | . . . . . . . . Scanalyzers . | . . . . . . . . Garrison Access . | . . . . . . . . Terminal Hacks 12 | . 4 . 1 . 5 . 2 Record 4 | . . . . . 4 . . Branch Access Points 1 | . 1 . . . . . . Machine Index 2 | . . . 1 . . . 1 Alert Level 1 | . . . . . . . 1 Locate Traps 2 | . 2 . . . . . . Maintenance Status 1 | . 1 . . . . . . EX-Prototype ID Bank 1 | . . . . . 1 . . Fabricator Hacks . | . . . . . . . . Repair Station Hacks . | . . . . . . . . Recycling Unit Hacks . | . . . . . . . . Scanalyzer . | . . . . . . . . Garrison Access Hacks . | . . . . . . . . Unauthorized Hacks 6 | . 4 . . . . . 2 Terminals 3 | . 2 . . . . . 1 Botnet 3 | . 2 . . . . . 1 Fabricators . | . . . . . . . . Repair Stations . | . . . . . . . . Recycling Units . | . . . . . . . . Scanalyzers . | . . . . . . . . Garrison Access . | . . . . . . . . Data Cores Recovered 1 | . . . 1 . . . . Used 1 | . . . 1 . . . . Hacking Detections 5 | . 2 . 1 . . . 2 Full Trace Events 2 | . 2 . . . . . . Feedback Events . | . . . . . . . . Feedback Blocked . | . . . . . . . . Robot Schematics Acquired . | . . . . . . . . Robots Built . | . . . . . . . . Matter . | . . . . . . . . Time . | . . . . . . . . Total Robot Build Rating . | . . . . . . . . Part Schematics Acquired . | . . . . . . . . Parts Built . | . . . . . . . . Matter . | . . . . . . . . Time . | . . . . . . . . Total Part Build Rating . | . . . . . . . . Parts Repaired . | . . . . . . . . Time . | . . . . . . . . Parts Recycled . | . . . . . . . . Recycled Matter . | . . . . . . . . Retrieved Matter . | . . . . . . . . Retrieved Components . | . . . . . . . . Parts Scanalyzed . | . . . . . . . . Part Schematics Acquired . | . . . . . . . . Parts Damaged . | . . . . . . . . Bothacking | -11 -10 -10 -9 -9 -9 -8 -8 ------------ Run | Scr Mat Min Mat Min Exi Min Mat Used RIF Installer . | . . . . . . . . Robots Hacked . | . . . . . . . . Non-combat . | . . . . . . . . Combat . | . . . . . . . . Robot Hacks Applied . | . . . . . . . . Relay Couplers Released . | . . . . . . . . Robots Rewired . | . . . . . . . . Allies Hacked . | . . . . . . . . Hacks Repelled . | . . . . . . . . Allies | -11 -10 -10 -9 -9 -9 -8 -8 -------- Run | Scr Mat Min Mat Min Exi Min Mat Total Allies . | . . . . . . . . Largest Group . | . . . . . . . . Highest-Rated Group . | . . . . . . . . Highest-Rated Ally . | . . . . . . . . Total Orders . | . . . . . . . . Ally Attacks . | . . . . . . . . Total Damage . | . . . . . . . . Kills . | . . . . . . . . Allies Corrupted . | . . . . . . . . Allies Melted . | . . . . . . . . Intel | -11 -10 -10 -9 -9 -9 -8 -8 ------- Run | Scr Mat Min Mat Min Exi Min Mat Robot Analysis Total . | . . . . . . . . Derelict Logs Recovered 2 | . . 1 . 1 . . . Drone Launches . | . . . . . . . . Drone Recoveries . | . . . . . . . . Exploration | -11 -10 -10 -9 -9 -9 -8 -8 ------------- Run | Scr Mat Min Mat Min Exi Min Mat Turns Passed 3321 | 44 1393 593 314 290 156 251 280 Spaces Moved 3814 | 36 1251 600 305 543 403 406 270 Core 1303 | 3 1190 110 . . . . . Treads . | . . . . . . . . Legs 99 | . . 99 . . . . . Wheels 540 | 33 61 391 55 . . . . Hover 103 | . . . 103 . . . . Flight 1769 | . . . 147 543 403 406 270 Fastest Speed 37 | 50 50 50 37 37 37 37 37 Average Speed 58 | 77 74 82 52 37 37 37 37 Slowest Speed 120 | 80 100 120 80 37 37 37 37 Overloaded Moves . | . . . . . . . . Propulsion Burnouts . | . . . . . . . . Robots Hopped 16 | . . . 2 3 . 3 8 Cave-ins Triggered . | . . . . . . . . Exploration Rate (%) 61 | 3 88 93 36 90 70 93 21 Regions Visited 7 Branch Regions 4 Pre-discovered Areas 1 | . . . . . 1 . . Known Exits Taken 1 | . 1 . . . . . . Unknown Exits Taken 6 | 1 . 1 1 1 1 1 . Scrap Searched 6 | . . 2 . 3 . 1 . Spaces Dug 57 | . . 8 12 . . 37 . Terrain Destroyed 203 | . 7 19 17 13 . 99 48 Melee . | . . . . . . . . Projectile 14 | . . . 1 1 . . 12 AOE 189 | . 7 19 16 12 . 99 36 Actions | -11 -10 -10 -9 -9 -9 -8 -8 --------- Run | Scr Mat Min Mat Min Exi Min Mat Total 4471 | 45 1540 648 411 599 405 457 366 Wait 280 | 2 131 5 68 18 1 11 44 Move 3780 | 35 1250 599 301 536 402 399 258 Hop 11 | . . . 1 3 . 3 4 Pick Up 4 | . 1 . . 1 . 1 1 Fast Attach 29 | 4 13 4 5 1 . . 2 Attach 1 | . . . . . . 1 . Detach 1 | . . . 1 . . . . Swap 13 | . 2 2 2 2 . 3 2 Drop 14 | . 3 2 3 2 . 1 3 Fire 262 | 4 116 24 23 15 2 36 42 Melee . | . . . . . . . . Ram 1 | . . 1 . . . . . Kick . | . . . . . . . . Crush . | . . . . . . . . Escape Stasis . | . . . . . . . . Rewire . | . . . . . . . . Trap 1 | . . 1 . . . . . Miscellaneous 74 | . 24 10 7 21 . 2 10 Route ------- -11/Scrapyard -10/Materials (discovered 5 exits: *Mat x3 / *Min x2) -10/Mines (discovered 2 exits: *Mat x2) -9/Materials (discovered 2 exits: [*Min x2]) -9/Mines (discovered 3 exits: *Mat x2 / *Exi) -9/Exiles -8/Mines (discovered 2 exits: *Mat x2) -8/Materials History --------- Turn | Location | Event 2 | -11/Scrapyard | Discovered new exit (range 16) 45 | -11/Scrapyard | Entered Materials 112 | -10/Materials | Identified exit to Mines 230 | -10/Materials | Discovered new exit (range 16) 303 | -10/Materials | Build established: Mutant 354 | -10/Materials | Upgraded with Utility slot (x1) 457 | -10/Materials | Upgraded with Weapon slot (x1) 562 | -10/Materials | Discovered new exit (range 15) 800 | -10/Materials | Reached level 2 825 | -10/Materials | Core integrity fell below 50% 831 | -10/Materials | Discovered new exit (range 16) 1079 | -10/Materials | Upgraded with Utility slot (x2) 1438 | -10/Materials | Entered Mines 1493 | -10/Mines | Discovered new exit (range 7) 1520 | -10/Mines | Learned Materials terminal intel 1528 | -10/Mines | Build established: Hacker-Mutant 1532 | -10/Mines | A weapon hastily lodged in a ceiling crevice suddenly fell to the ground 1707 | -10/Mines | Received a Rocket Launcher from a helpful Derelict 1738 | -10/Mines | Found a hidden stash of uninstalled traps 1941 | -10/Mines | Discovered new exit (range 11) 1974 | -10/Mines | Build established: Scavenger-Mutant 2012 | -10/Mines | Reached level 3 2031 | -10/Mines | Entered Materials 2032 | -9/Materials | Loaded intel: 12 terminal locations 2033 | -9/Materials | Reached level 4 2067 | -9/Materials | Discovered new exit (range 8) 2157 | -9/Materials | Core integrity fell below 50% 2172 | -9/Materials | Met 8R-AWN 2240 | -9/Materials | Upgraded with Propulsion slot (x1) 2327 | -9/Materials | Discovered new exit (range 6) 2345 | -9/Materials | Entered Mines 2346 | -9/Mines | Followed 8R-AWN into the Mines 2347 | -9/Mines | Reached level 5 2383 | -9/Mines | Discovered new exit (range 5) 2399 | -9/Mines | Learned Materials garrison access intel 2549 | -9/Mines | Discovered new exit (range 16) 2565 | -9/Mines | Discovered new exit (range 13) 2635 | -9/Mines | Entered Exiles 2645 | -9/Exiles | Welcomed by 8R-AWN 2651 | -9/Exiles | Met EX-HEX 2665 | -9/Exiles | Met EX-DEC 2667 | -9/Exiles | Learned location of Zion (-6) 2674 | -9/Exiles | Met EX-BIN 2679 | -9/Exiles | Reached level 6 2679 | -9/Exiles | Aligned with FarCom system 2680 | -9/Exiles | Given EX-Vault access code 2690 | -9/Exiles | Opened EX-Vault 2714 | -9/Exiles | Warned to stay clear of 0b10 Research branches 2770 | -9/Exiles | Discovered new exit (range 11) 2781 | -9/Exiles | Attacked by the Exiles 2782 | -9/Exiles | Build established: Hacker-Mutant 2791 | -9/Exiles | Entered Mines 2819 | -8/Mines | Discovered new exit (range 13) 2825 | -8/Mines | Reached level 7 2857 | -8/Mines | Discovered new exit (range 15) 3014 | -8/Mines | Reached level 8 3042 | -8/Mines | Entered Materials 3043 | -8/Materials | Loaded intel: 1 garrison access location 3043 | -8/Materials | Core integrity fell below 50% 3044 | -8/Materials | Reached level 9 3087 | -8/Materials | Core integrity fell below 20% 3204 | -8/Materials | Reached level 10 3323 | -8/Materials | Core destroyed Last Messages --------------- 03300_ G-47 Trooper destroyed. 03303_ Slug penetrates G-47 Trooper. 03306_ G-47 Trooper suffers critical hit. 03306_ Destroyed Particle Gun. 03308_ Slug penetrates Wall. 03308_ G-47 Trooper knocked back. 03311_ G-47 Trooper destroyed. 03311_ Slug penetrates Wall. 03314_ Upgraded: Core Integrity (+100) 03314_ G-47 Trooper knocked back. 03314_ Slug penetrates Wall. 03314_ Atomic Centrifuge disabled. 03317_ Power failure, Lgt. Ion Engine shutdown. 03317_ G-47 Trooper destroyed. 03317_ G-47 Trooper knocked back. 03318_ Overheating: Matter decay (-44). 03319_ Overheating: Hacking Suite damaged (-2). 03319_ Flight Unit destroyed. 03322_ G-47 Trooper knocked back. 03323_ Overheating: Core damaged (-98). Map ----- +----------------------------------------------------+ | ????????????????????????????"??# ? #????????? | | ???????????????????????????? ?# # #????????? | | ??????????????????????? ?? ??## #[[ #????????? | | ??????????????????????#???#??### #[! ##????#??? | | ??????????????????????#??#???### """"""####?#?#??? | | ???????????????????#???#???#?##" """"""""##??????? | | ????????????????????????#????# " " ###?????? | | ???????????????????#?????##???#" " ##??#???? | | ????????????????????#????????##" " ####????? | | ???????????? ??"? #????? ????##" " #?##??#?? | | ???????????????? ?#?##? ??" ##" " ] #??##???? | | ????????????????###?##? "" ?#" """""""##?##????? | | ??????????????# ? ? ?# ?" ### !!"###???##?#?? | | ?????????????#?? #? ?## ! ##?????##?#?? | | ??????????####?? ###+;;#?## ]]#####??#??#?? | | ??????????#??## ??? # #### ]]#?????#?###?? | | ?????????#?##?# # #### !!##??#??#????? | | ?????????##?######+#### !!##???????##?? | | ??????##?######### #?## ##/#######?#??#?#?#?#? | | ??????##?#! # #### # ? ?#?#??##??????? | | ??????#?## [ + ######g;## T ??#???????#?#?? | | ???????#?# = # ###?#;%g## ###?##?#???#??? | | ?????############# #####=%%## #??#????#?????? | | ???### # ! ###[!=## #??#?????#?#??? | | ????## # ###;%### ########?##???? | | ?????# + r t@###########?##?#???????? | | ?????# # ################?###????????? | | ?????# """"" # [ ##############?#####?#??????? | | ?????# """"" ## ##"""T"""####!#######????????? | | ????## ?""""" ?## ! #* ! !#?#?#??#???????? | | ?#???#? ? ## # """ """ [""##?#???????????? | | ????############# + """ """ T"##?#??????#????? | | ??#?#?###?#?###?# = # """ """ ""###?#??#???????? | | ???##?#####?##### # ####???#???????? | | ????##???#?####?# #[ ##?#??#?#??????? | | ??????#?######### ###############???#???????#??? | | ????#??###?#?#### ########################?#?#?? | | ????????##?######= ### ! # """ #?????? | | ???#???##?##?#### ### """"" # """ #??#??? | | ????#????##?##### #?# """"""""" # """ #?#???? | | ???????#??#?##### #?# ? """ """ ?# ??????? | | ??????###?###%%## ##? ??? ?????##?? | | ????????#??# * ########+########+#####?#??#? | | ??????#?##?# #?#????? | | ??????##??## ! ##??#??? | | ???#?#??#?## #???#??? | | ?????#??##?## % ########+########+####???#??? | | ???????#??#?##########??? ?# ????????? | | ?????#???#?????##?#?#?#?? ] # """ #????#??? | | ??????#?###?#????????#??# # """ #????#??? | +----------------------------------------------------+ Best States ------------- Heat Dissipation 25 Energy Generation 10 Energy Capacity 125 Matter Stores 350 Matter Capacity 350 Sight Range 16 Terrain Scan Range 16 Terrain Scan Density 110 Resistance: KI 20 Resistance: TH 20 Weapon Cycling 15 Evasion (%) 62 Targeting Accuracy 5 Offensive Hacking 30 Item Schematics ----------------- None Robot Schematics ------------------ None Fabricated ------------ Nothing Alien Tech Used ----------------- None Achievements -------------- None Challenges ------------ None RPGLIKE | -11 -10 -10 -9 -9 -9 -8 -8 --------- Run | Scr Mat Min Mat Min Exi Min Mat Levels Raised 9 | . 1 1 1 1 1 2 2 XP Earned 17166 | 3000 1880 1350 2450 1575 350 3149 3412 XP Spent 9360 | 50 4150 . 1000 . . . 4160 Upgrades 23 | 1 8 . 3 . . . 11 Propulsion Slot 1 | . . . 1 . . . . Utility Slot 3 | . 3 . . . . . . Weapon Slot 1 | . 1 . . . . . . Core Integrity 2 | . . . . . . . 2 Mass Support 3 | . 1 . 2 . . . . Inventory Capacity 2 | . 1 . . . . . 1 Terrain Scan Density 1 | 1 . . . . . . . Ranged Accuracy 2 | . 2 . . . . . . KI Resistance % 4 | . . . . . . . 4 TH Resistance % 4 | . . . . . . . 4 Protomatter Created 648 | . 193 78 43 134 . 25 175 Integrity Restored 1397 | . 436 207 129 392 . 29 204 Core 1279 | . 355 207 129 367 . 17 204 Parts 118 | . 81 . . 25 . 12 . Protomatter Decayed 239 | . 45 . 167 . . 4 23 Game ------ Seed BombLayeredMachine Manual? 0 Play Time 00:38:37 Cumulative 218.3 hours Start 2019.12.15 @ 16:11:27 End 2019.12.15 @ 16:51:03 Sessions 1 Manual Loads 0 Difficulty Rogue Special Mode Winter2019/RPGLIKE Game No. 187 Rogue 187 Adventurer 0 Explorer 0 Win Type - Total 5 Types 5/0/0/0/0/0/0 Lore% 62 Gallery% 75 Achievement% 62 Wizard Run 0 Options --------- ASCII 0 Keyboard 1 Movement Numpad Keybinds 0 Fullscreen 1 Font 18/SmallcapsGlow Map View 76x50 Tactical HUD 1 Map Filters NONE Filters NONE Steam 1 RUN: ecff90a0-32df-47e7-9a02-c536fefa2a68